[Event "Late-Titled-Tuesday-Blitz-April-02-2024"]
[Site "Chess.com"]
[Date "2024.04.02"]
[Round "11"]
[White "slidingknight2775"]
[Black "WindWhistler11"]
[Result "0-1"]
[WhiteElo "2575"]
[BlackElo "2470"]
[TimeControl "180+1"]
[EndTime "16:03:18 PDT"]
[Termination "WindWhistler11 won by checkmate"]

1. Nf3 {[%clk 0:03:00.9]} 1... Nf6 {[%clk 0:02:56.8]} 2. c4 {[%clk 0:03:00.6]}
2... e6 {[%clk 0:02:57.7]} 3. e3 {[%clk 0:02:59]} 3... b6 {[%clk 0:02:56.4]} 4.
Nc3 {[%clk 0:02:57.5]} 4... Bb7 {[%clk 0:02:56.9]} 5. b3 {[%clk 0:02:58.4]} 5...
c5 {[%clk 0:02:56.3]} 6. Bb2 {[%clk 0:02:58.8]} 6... Be7 {[%clk 0:02:55.3]} 7.
d4 {[%clk 0:02:58]} 7... cxd4 {[%clk 0:02:54.5]} 8. Qxd4 {[%clk 0:02:57.3]} 8...
Nc6 {[%clk 0:02:53.6]} 9. Qd2 {[%clk 0:02:57.9]} 9... d6 {[%clk 0:02:51.9]} 10.
Be2 {[%clk 0:02:58.2]} 10... O-O {[%clk 0:02:51.7]} 11. O-O {[%clk 0:02:58.4]}
11... a6 {[%clk 0:02:52.1]} 12. Rfd1 {[%clk 0:02:58.4]} 12... Qc7 {[%clk
0:02:52.4]} 13. Rac1 {[%clk 0:02:58.2]} 13... Ne5 {[%clk 0:02:47.8]} 14. Nd4
{[%clk 0:02:49.9]} 14... Rfd8 {[%clk 0:02:44.8]} 15. h3 {[%clk 0:02:48.3]} 15...
Rac8 {[%clk 0:02:44.3]} 16. Qc2 {[%clk 0:02:37.8]} 16... Qb8 {[%clk 0:02:38.8]}
17. Qb1 {[%clk 0:02:37.8]} 17... Qa8 {[%clk 0:02:38.4]} 18. Bf1 {[%clk
0:02:36.5]} 18... Ng6 {[%clk 0:02:37.9]} 19. Qa1 {[%clk 0:02:28.5]} 19... Nh4
{[%clk 0:02:36]} 20. g3 {[%clk 0:02:17.6]} 20... e5 {[%clk 0:02:29.7]} 21. gxh4
{[%clk 0:02:14.1]} 21... exd4 {[%clk 0:02:29.5]} 22. exd4 {[%clk 0:02:15]} 22...
d5 {[%clk 0:02:19.1]} 23. Re1 {[%clk 0:02:00]} 23... Bb4 {[%clk 0:02:04.4]} 24.
a3 {[%clk 0:01:53.4]} 24... Bf8 {[%clk 0:01:51.7]} 25. Na4 {[%clk 0:01:44.2]}
25... Qb8 {[%clk 0:01:31.8]} 26. c5 {[%clk 0:01:36.3]} 26... bxc5 {[%clk
0:01:28]} 27. dxc5 {[%clk 0:01:37.2]} 27... Ne4 {[%clk 0:01:20.7]} 28. Be5
{[%clk 0:01:30.5]} 28... Qa7 {[%clk 0:01:12.1]} 29. b4 {[%clk 0:01:28.7]} 29...
d4 {[%clk 0:01:06.9]} 30. Bxd4 {[%clk 0:01:25.8]} 30... Nd2 {[%clk 0:01:06.3]}
31. Re3 {[%clk 0:01:15.4]} 31... Nf3+ {[%clk 0:01:01]} 32. Rxf3 {[%clk
0:01:14.7]} 32... Bxf3 {[%clk 0:01:01.9]} 33. Be3 {[%clk 0:01:10]} 33... Rc6
{[%clk 0:00:59.8]} 34. Bc4 {[%clk 0:01:02.6]} 34... Rg6+ {[%clk 0:00:59.9]} 35.
Kf1 {[%clk 0:01:03.3]} 35... Qc7 {[%clk 0:00:55.8]} 36. Ke1 {[%clk 0:00:24.9]}
36... Rg1+ {[%clk 0:00:48.3]} 37. Bf1 {[%clk 0:00:24.6]} 37... Qh2 {[%clk
0:00:47.1]} 38. Qc3 {[%clk 0:00:23.3]} 38... Rxf1+ {[%clk 0:00:45.5]} 39. Kxf1
{[%clk 0:00:23.3]} 39... Qh1# {[%clk 0:00:45.6]} 0-1

[Event "Late-Titled-Tuesday-Blitz-April-02-2024"]
[Site "Chess.com"]
[Date "2024.04.02"]
[Round "11"]
[White "Oleksandr_Bortnyk"]
[Black "dropstoneDP"]
[Result "0-1"]
[WhiteElo "3045"]
[BlackElo "3007"]
[TimeControl "180+1"]
[EndTime "16:03:22 PDT"]
[Termination "dropstoneDP won by resignation"]

1. e4 {[%clk 0:02:58.1]} 1... e5 {[%clk 0:03:00.4]} 2. Bc4 {[%clk 0:02:56.6]}
2... Nf6 {[%clk 0:03:01]} 3. d3 {[%clk 0:02:56.4]} 3... c6 {[%clk 0:03:01.4]} 4.
Nf3 {[%clk 0:02:56.8]} 4... d5 {[%clk 0:03:01.5]} 5. Bb3 {[%clk 0:02:57.2]} 5...
Bb4+ {[%clk 0:02:59]} 6. Bd2 {[%clk 0:02:57.6]} 6... Bxd2+ {[%clk 0:02:59.1]} 7.
Nbxd2 {[%clk 0:02:58.1]} 7... a5 {[%clk 0:02:57.1]} 8. a3 {[%clk 0:02:56.6]}
8... Nbd7 {[%clk 0:02:53.8]} 9. Qe2 {[%clk 0:02:53.9]} 9... O-O {[%clk
0:02:53.2]} 10. O-O {[%clk 0:02:50.9]} 10... dxe4 {[%clk 0:02:45.8]} 11. Nxe4
{[%clk 0:02:36.4]} 11... Nxe4 {[%clk 0:02:45.9]} 12. dxe4 {[%clk 0:02:37.3]}
12... Qe7 {[%clk 0:02:40.7]} 13. h3 {[%clk 0:02:29.8]} 13... Nc5 {[%clk
0:02:39.6]} 14. Rfd1 {[%clk 0:02:19.2]} 14... Nxb3 {[%clk 0:02:36.1]} 15. cxb3
{[%clk 0:02:20.1]} 15... Be6 {[%clk 0:02:35.6]} 16. Qe3 {[%clk 0:02:12.9]} 16...
f6 {[%clk 0:02:34.7]} 17. Rd3 {[%clk 0:02:11]} 17... Rfd8 {[%clk 0:02:34.3]} 18.
Rad1 {[%clk 0:02:11.2]} 18... Rxd3 {[%clk 0:02:32.3]} 19. Qxd3 {[%clk
0:02:10.9]} 19... Kf7 {[%clk 0:02:19.7]} 20. Rd2 {[%clk 0:02:05.9]} 20... Ke8
{[%clk 0:02:16.6]} 21. Qc3 {[%clk 0:02:05.9]} 21... Qc7 {[%clk 0:02:02.5]} 22.
b4 {[%clk 0:01:41.3]} 22... axb4 {[%clk 0:01:59.1]} 23. Qxb4 {[%clk 0:01:41.3]}
23... Qe7 {[%clk 0:01:51.5]} 24. Qb6 {[%clk 0:01:37.4]} 24... Ra6 {[%clk
0:01:50.5]} 25. Qe3 {[%clk 0:01:37.6]} 25... Ra8 {[%clk 0:01:51.1]} 26. Qb6
{[%clk 0:01:23.3]} 26... Ra6 {[%clk 0:01:50.8]} 27. Qe3 {[%clk 0:01:23.7]} 27...
Ra8 {[%clk 0:01:51.1]} 28. Ne1 {[%clk 0:01:16.7]} 28... Rd8 {[%clk 0:01:50.6]}
29. Nd3 {[%clk 0:01:14.3]} 29... Qd6 {[%clk 0:01:48]} 30. Qf3 {[%clk 0:00:35.6]}
30... Rd7 {[%clk 0:01:23.7]} 31. Qh5+ {[%clk 0:00:29.7]} 31... g6 {[%clk
0:01:24.2]} 32. Qd1 {[%clk 0:00:08.3]} 32... Bc4 {[%clk 0:01:23.5]} 33. b4
{[%clk 0:00:02.9]} 33... Bxd3 {[%clk 0:01:23.3]} 34. Qb3 {[%clk 0:00:03.5]}
34... Kf8 {[%clk 0:01:22.3]} 35. Qa4 {[%clk 0:00:03]} 35... Kg7 {[%clk
0:01:21.8]} 36. Qa8 {[%clk 0:00:03]} 36... Qc7 {[%clk 0:01:14.6]} 37. Qe8 {[%clk
0:00:02.8]} 37... Rd8 {[%clk 0:01:04.3]} 38. Qe6 {[%clk 0:00:03.1]} 38... Bc4
{[%clk 0:01:04.9]} 39. Qxc4 {[%clk 0:00:03.7]} 39... Rxd2 {[%clk 0:01:04.9]} 40.
b5 {[%clk 0:00:04.6]} 40... Qd7 {[%clk 0:01:04.1]} 0-1

[Event "Late-Titled-Tuesday-Blitz-April-02-2024"]
[Site "Chess.com"]
[Date "2024.04.02"]
[Round "11"]
[White "nabukatnezarr"]
[Black "Practical-Play"]
[Result "1-0"]
[WhiteElo "2637"]
[BlackElo "2514"]
[TimeControl "180+1"]
[EndTime "16:03:22 PDT"]
[Termination "nabukatnezarr won by resignation"]

1. Nf3 {[%clk 0:03:00.9]} 1... d5 {[%clk 0:02:53.8]} 2. g3 {[%clk 0:03:01.8]}
2... c5 {[%clk 0:02:53.2]} 3. Bg2 {[%clk 0:03:02.3]} 3... Nc6 {[%clk 0:02:53.4]}
4. d4 {[%clk 0:03:03.1]} 4... Bf5 {[%clk 0:02:50.9]} 5. O-O {[%clk 0:03:01.9]}
5... e6 {[%clk 0:02:51.1]} 6. c4 {[%clk 0:03:01.3]} 6... Nf6 {[%clk 0:02:47.7]}
7. Nc3 {[%clk 0:02:59.4]} 7... dxc4 {[%clk 0:02:42.3]} 8. Qa4 {[%clk 0:02:47.5]}
8... Nd5 {[%clk 0:02:29.2]} 9. Ne5 {[%clk 0:02:27.5]} 9... Rc8 {[%clk
0:02:28.6]} 10. e4 {[%clk 0:02:18.7]} 10... Nb6 {[%clk 0:02:20]} 11. Nxc6 {[%clk
0:02:11.4]} 11... bxc6 {[%clk 0:02:00.7]} 12. Qa6 {[%clk 0:02:02.2]} 12... Bg6
{[%clk 0:01:54.1]} 13. d5 {[%clk 0:01:40.4]} 13... cxd5 {[%clk 0:01:46.4]} 14.
exd5 {[%clk 0:01:41.3]} 14... exd5 {[%clk 0:01:44.4]} 15. Re1+ {[%clk
0:00:52.6]} 15... Be7 {[%clk 0:01:40.3]} 16. Bg5 {[%clk 0:00:52.6]} 16... f6
{[%clk 0:01:37.7]} 17. Nxd5 {[%clk 0:00:47.7]} 17... Nxd5 {[%clk 0:01:34.8]} 18.
Bxd5 {[%clk 0:00:46.5]} 18... Qxd5 {[%clk 0:00:54.9]} 19. Qxc8+ {[%clk
0:00:44.6]} 19... Kf7 {[%clk 0:00:55.4]} 20. Rxe7+ {[%clk 0:00:26.2]} 20... Kxe7
{[%clk 0:00:54.1]} 21. Re1+ {[%clk 0:00:26.5]} 21... Kf7 {[%clk 0:00:40.6]} 22.
Qxh8 {[%clk 0:00:26]} 22... fxg5 {[%clk 0:00:41.2]} 23. Qe8+ {[%clk 0:00:23.4]}
23... Kf6 {[%clk 0:00:40.6]} 24. Qe7+ {[%clk 0:00:21]} 24... Kf5 {[%clk
0:00:41]} 25. h3 {[%clk 0:00:12.1]} 25... h5 {[%clk 0:00:34.8]} 26. Qxg7 {[%clk
0:00:08.5]} 26... Qd4 {[%clk 0:00:31.3]} 27. Qf8+ {[%clk 0:00:07.3]} 27... Qf6
{[%clk 0:00:30.8]} 28. g4+ {[%clk 0:00:07.3]} 1-0

[Event "Late-Titled-Tuesday-Blitz-April-02-2024"]
[Site "Chess.com"]
[Date "2024.04.02"]
[Round "11"]
[White "sergoy"]
[Black "Hamisandwich"]
[Result "1-0"]
[WhiteElo "2917"]
[BlackElo "2720"]
[TimeControl "180+1"]
[EndTime "16:03:26 PDT"]
[Termination "sergoy won by resignation"]

1. d4 {[%clk 0:03:00.9]} 1... Nf6 {[%clk 0:02:59]} 2. c4 {[%clk 0:03:00.6]} 2...
b6 {[%clk 0:02:59.6]} 3. f3 {[%clk 0:03:00.4]} 3... Nc6 {[%clk 0:02:57.6]} 4.
Nc3 {[%clk 0:03:00.4]} 4... e5 {[%clk 0:02:55.8]} 5. d5 {[%clk 0:03:00.4]} 5...
Na5 {[%clk 0:02:55.5]} 6. e4 {[%clk 0:02:59.8]} 6... Bb4 {[%clk 0:02:54.7]} 7.
Bd2 {[%clk 0:02:56.6]} 7... Nb7 {[%clk 0:02:50.7]} 8. a3 {[%clk 0:02:54.1]} 8...
Bc5 {[%clk 0:02:50.9]} 9. Nge2 {[%clk 0:02:52.1]} 9... a5 {[%clk 0:02:50.3]} 10.
g4 {[%clk 0:02:46.7]} 10... d6 {[%clk 0:02:41.6]} 11. Ng3 {[%clk 0:02:45.1]}
11... h5 {[%clk 0:02:31.6]} 12. g5 {[%clk 0:02:41.1]} 12... Ng8 {[%clk
0:02:22.8]} 13. h4 {[%clk 0:02:40.8]} 13... Ne7 {[%clk 0:02:21.1]} 14. Qc2
{[%clk 0:02:35.6]} 14... Ng6 {[%clk 0:02:15.3]} 15. O-O-O {[%clk 0:02:35.5]}
15... Nf4 {[%clk 0:02:03.6]} 16. Nf5 {[%clk 0:02:27.1]} 16... g6 {[%clk
0:02:01.3]} 17. Nh6 {[%clk 0:02:27]} 17... Qe7 {[%clk 0:01:43.4]} 18. Nb5 {[%clk
0:02:26.5]} 18... a4 {[%clk 0:01:35.9]} 19. Kb1 {[%clk 0:02:24.1]} 19... Kd8
{[%clk 0:01:31.9]} 20. Bxf4 {[%clk 0:02:16.5]} 20... exf4 {[%clk 0:01:32.8]} 21.
Qc3 {[%clk 0:02:16.7]} 21... Rf8 {[%clk 0:01:26.1]} 22. Qg7 {[%clk 0:01:57.9]}
22... Be3 {[%clk 0:01:19.7]} 23. Ng8 {[%clk 0:01:49.3]} 23... Qe8 {[%clk
0:01:11.6]} 24. Nf6 {[%clk 0:01:48.8]} 24... Qe7 {[%clk 0:01:12.3]} 25. Bd3
{[%clk 0:01:38.1]} 25... Bd7 {[%clk 0:01:10.5]} 26. e5 {[%clk 0:01:35.7]} 26...
Bxb5 {[%clk 0:00:57.3]} 27. cxb5 {[%clk 0:01:29]} 27... Nc5 {[%clk 0:00:57.9]}
28. Be4 {[%clk 0:01:18.7]} 28... Nd7 {[%clk 0:00:38.3]} 29. Nxd7 {[%clk
0:01:04.6]} 29... Kxd7 {[%clk 0:00:39.2]} 30. exd6 {[%clk 0:01:04.9]} 30... Qxd6
{[%clk 0:00:29.1]} 31. Rh2 {[%clk 0:01:01.2]} 31... Rae8 {[%clk 0:00:24]} 32.
Qc3 {[%clk 0:01:00.4]} 32... Qc5 {[%clk 0:00:18.5]} 33. Qd3 {[%clk 0:01:00.3]}
33... Ra8 {[%clk 0:00:11.8]} 34. Rc2 {[%clk 0:00:59.6]} 34... Qd6 {[%clk
0:00:12.4]} 35. Rc6 {[%clk 0:00:59.8]} 35... Qe5 {[%clk 0:00:12.7]} 36. d6
{[%clk 0:01:00.2]} 36... Rfc8 {[%clk 0:00:06]} 37. Rxc7+ {[%clk 0:00:59]} 37...
Rxc7 {[%clk 0:00:03.7]} 38. dxc7+ {[%clk 0:00:59.9]} 38... Kxc7 {[%clk
0:00:04.6]} 39. Qd7+ {[%clk 0:00:58.6]} 1-0

[Event "Late-Titled-Tuesday-Blitz-April-02-2024"]
[Site "Chess.com"]
[Date "2024.04.02"]
[Round "11"]
[White "1mbl4"]
[Black "Mikhal867"]
[Result "1-0"]
[WhiteElo "2647"]
[BlackElo "2527"]
[TimeControl "180+1"]
[EndTime "16:03:33 PDT"]
[Termination "1mbl4 won by checkmate"]

1. e4 {[%clk 0:03:00.9]} 1... g6 {[%clk 0:02:59.6]} 2. d4 {[%clk 0:03:00.1]}
2... Bg7 {[%clk 0:03:00.2]} 3. Nc3 {[%clk 0:03:00]} 3... d6 {[%clk 0:03:00.8]}
4. Be3 {[%clk 0:02:56.4]} 4... a6 {[%clk 0:03:00.1]} 5. a4 {[%clk 0:02:55.6]}
5... b6 {[%clk 0:02:59.1]} 6. g3 {[%clk 0:02:54.4]} 6... Bb7 {[%clk 0:02:58]} 7.
Bg2 {[%clk 0:02:54.5]} 7... e6 {[%clk 0:02:58.1]} 8. Nge2 {[%clk 0:02:53.8]}
8... Ne7 {[%clk 0:02:57.8]} 9. O-O {[%clk 0:02:53.8]} 9... h6 {[%clk 0:02:57.9]}
10. Qd2 {[%clk 0:02:51.2]} 10... Nd7 {[%clk 0:02:57.2]} 11. f4 {[%clk
0:02:47.6]} 11... O-O {[%clk 0:02:55.9]} 12. f5 {[%clk 0:02:42.1]} 12... exf5
{[%clk 0:02:52.5]} 13. Bxh6 {[%clk 0:02:42.3]} 13... Nf6 {[%clk 0:02:44.2]} 14.
Bxg7 {[%clk 0:02:38.9]} 14... Kxg7 {[%clk 0:02:43.8]} 15. e5 {[%clk 0:02:36.9]}
15... Nfd5 {[%clk 0:02:30.5]} 16. Nxd5 {[%clk 0:02:14.4]} 16... Bxd5 {[%clk
0:02:28.9]} 17. Nf4 {[%clk 0:02:12.1]} 17... Bxg2 {[%clk 0:02:22.6]} 18. Qxg2
{[%clk 0:02:08.8]} 18... dxe5 {[%clk 0:02:20.9]} 19. dxe5 {[%clk 0:02:08.5]}
19... Qd4+ {[%clk 0:02:19.2]} 20. Kh1 {[%clk 0:02:08]} 20... Qxe5 {[%clk
0:02:07.9]} 21. Rae1 {[%clk 0:02:07]} 21... Qf6 {[%clk 0:02:07.8]} 22. g4 {[%clk
0:01:54.7]} 22... Rh8 {[%clk 0:01:37]} 23. g5 {[%clk 0:01:30.6]} 23... Qd6
{[%clk 0:01:30.4]} 24. Rd1 {[%clk 0:01:30.4]} 24... Qc6 {[%clk 0:01:02.1]} 25.
Qxc6 {[%clk 0:01:27.8]} 25... Nxc6 {[%clk 0:01:02.1]} 26. Rd7 {[%clk 0:01:28.2]}
26... Rac8 {[%clk 0:00:42.2]} 27. Re1 {[%clk 0:01:23.6]} 27... Rh4 {[%clk
0:00:38.3]} 28. Ne6+ {[%clk 0:01:06.4]} 28... Kg8 {[%clk 0:00:37.8]} 29. Nxc7
{[%clk 0:01:06.5]} 29... Nd4 {[%clk 0:00:32]} 30. Kg2 {[%clk 0:00:56.8]} 30...
Rg4+ {[%clk 0:00:27.5]} 31. Kf2 {[%clk 0:00:55.8]} 31... Rxg5 {[%clk 0:00:18.6]}
32. Ree7 {[%clk 0:00:54.9]} 32... Rf8 {[%clk 0:00:18.7]} 33. Rxd4 {[%clk
0:00:54.2]} 33... Rh5 {[%clk 0:00:17.6]} 34. h4 {[%clk 0:00:53.8]} 34... Kg7
{[%clk 0:00:16.4]} 35. Red7 {[%clk 0:00:48.7]} 35... Kf6 {[%clk 0:00:15.8]} 36.
Nd5+ {[%clk 0:00:47.9]} 36... Ke5 {[%clk 0:00:15.8]} 37. Nf4 {[%clk 0:00:45.7]}
37... Rh7 {[%clk 0:00:14]} 38. R7d6 {[%clk 0:00:43.2]} 38... Rxh4 {[%clk
0:00:12.1]} 39. Nd3# {[%clk 0:00:42.9]} 1-0

[Event "Late-Titled-Tuesday-Blitz-April-02-2024"]
[Site "Chess.com"]
[Date "2024.04.02"]
[Round "11"]
[White "jinxy2009"]
[Black "PotapovaM"]
[Result "0-1"]
[WhiteElo "2321"]
[BlackElo "2540"]
[TimeControl "180+1"]
[EndTime "16:03:36 PDT"]
[Termination "PotapovaM won by resignation"]

1. e4 {[%clk 0:03:00.9]} 1... e6 {[%clk 0:02:58.5]} 2. d4 {[%clk 0:02:59.6]}
2... d5 {[%clk 0:02:51.6]} 3. e5 {[%clk 0:02:59.4]} 3... c5 {[%clk 0:02:51.7]}
4. c3 {[%clk 0:03:00]} 4... Bd7 {[%clk 0:02:51.2]} 5. Nf3 {[%clk 0:02:59.2]}
5... Qb6 {[%clk 0:02:51.5]} 6. Be2 {[%clk 0:02:59.3]} 6... Bb5 {[%clk 0:02:52]}
7. Bxb5+ {[%clk 0:02:58.9]} 7... Qxb5 {[%clk 0:02:52.2]} 8. Na3 {[%clk
0:02:58.8]} 8... Qc6 {[%clk 0:02:50.2]} 9. dxc5 {[%clk 0:02:57.2]} 9... Bxc5
{[%clk 0:02:50.2]} 10. b4 {[%clk 0:02:51]} 10... Be7 {[%clk 0:02:50.1]} 11. Qb3
{[%clk 0:02:43.3]} 11... Nh6 {[%clk 0:02:41.4]} 12. Bxh6 {[%clk 0:02:41.4]}
12... gxh6 {[%clk 0:02:41.4]} 13. Nd4 {[%clk 0:02:41.6]} 13... Qd7 {[%clk
0:02:41.5]} 14. O-O {[%clk 0:02:29.4]} 14... O-O {[%clk 0:02:40.9]} 15. Rad1
{[%clk 0:02:24.6]} 15... Nc6 {[%clk 0:02:34.3]} 16. c4 {[%clk 0:02:12.2]} 16...
Nxe5 {[%clk 0:02:30.1]} 17. Qg3+ {[%clk 0:01:58.8]} 17... Ng6 {[%clk 0:02:28.5]}
18. c5 {[%clk 0:01:26.1]} 18... e5 {[%clk 0:02:19.4]} 19. Nf3 {[%clk 0:01:19.3]}
19... Qe6 {[%clk 0:02:08.9]} 20. Rfe1 {[%clk 0:01:14.9]} 20... e4 {[%clk
0:02:06]} 21. Nd4 {[%clk 0:01:14.8]} 21... Qd7 {[%clk 0:02:04]} 22. Nac2 {[%clk
0:01:05.5]} 22... a5 {[%clk 0:02:03.8]} 23. a3 {[%clk 0:00:59.3]} 23... axb4
{[%clk 0:02:02.6]} 24. axb4 {[%clk 0:01:00.2]} 24... Ra2 {[%clk 0:02:03]} 25.
Ne3 {[%clk 0:01:00.4]} 25... f5 {[%clk 0:01:59.7]} 26. Qh3 {[%clk 0:00:50.3]}
26... Nf4 {[%clk 0:01:21]} 27. Qxh6 {[%clk 0:00:33.4]} 27... Nd3 {[%clk
0:01:20.8]} 28. Rf1 {[%clk 0:00:33.4]} 28... f4 {[%clk 0:01:16.1]} 29. Ne6
{[%clk 0:00:21]} 29... Rf7 {[%clk 0:01:09.9]} 30. Ng4 {[%clk 0:00:10.8]} 30...
Ra6 {[%clk 0:00:52.3]} 31. Qh5 {[%clk 0:00:03]} 31... Qxe6 {[%clk 0:00:49.6]}
32. Nh6+ {[%clk 0:00:03.3]} 32... Qxh6 {[%clk 0:00:49.9]} 33. Qg4+ {[%clk
0:00:03.7]} 33... Rg6 {[%clk 0:00:49.5]} 34. Qc8+ {[%clk 0:00:03.8]} 34... Kg7
{[%clk 0:00:49.9]} 35. Qxb7 {[%clk 0:00:03.8]} 35... Qg5 {[%clk 0:00:49.6]} 36.
g3 {[%clk 0:00:03.3]} 36... f3 {[%clk 0:00:49.9]} 37. Qc6 {[%clk 0:00:02]} 37...
Qh5 {[%clk 0:00:49.6]} 0-1

[Event "Late-Titled-Tuesday-Blitz-April-02-2024"]
[Site "Chess.com"]
[Date "2024.04.02"]
[Round "11"]
[White "PNEPaul"]
[Black "simaopdias"]
[Result "0-1"]
[WhiteElo "1985"]
[BlackElo "2291"]
[TimeControl "180+1"]
[EndTime "16:03:37 PDT"]
[Termination "simaopdias won on time"]

1. e4 {[%clk 0:03:00.9]} 1... c5 {[%clk 0:02:59.1]} 2. Nf3 {[%clk 0:03:00.7]}
2... g6 {[%clk 0:02:59.3]} 3. d4 {[%clk 0:03:00.5]} 3... cxd4 {[%clk 0:03:00.2]}
4. c3 {[%clk 0:03:00.6]} 4... d5 {[%clk 0:02:59.3]} 5. exd5 {[%clk 0:02:59.7]}
5... Qxd5 {[%clk 0:02:58.9]} 6. cxd4 {[%clk 0:02:59.5]} 6... Bg7 {[%clk
0:02:58.8]} 7. Nc3 {[%clk 0:02:58]} 7... Qd6 {[%clk 0:02:59.3]} 8. Nb5 {[%clk
0:02:54.8]} 8... Qd8 {[%clk 0:02:53.4]} 9. Be2 {[%clk 0:02:54.5]} 9... Nf6
{[%clk 0:02:53.1]} 10. O-O {[%clk 0:02:53.4]} 10... O-O {[%clk 0:02:52.9]} 11.
h3 {[%clk 0:02:51.3]} 11... Nc6 {[%clk 0:02:50.5]} 12. Be3 {[%clk 0:02:47.1]}
12... a6 {[%clk 0:02:48.8]} 13. Nc3 {[%clk 0:02:47.1]} 13... Re8 {[%clk
0:02:44.3]} 14. Rc1 {[%clk 0:02:46.5]} 14... Bf5 {[%clk 0:02:38.3]} 15. d5
{[%clk 0:02:23]} 15... Nb4 {[%clk 0:02:35]} 16. Bc4 {[%clk 0:02:21.3]} 16... b5
{[%clk 0:02:32.7]} 17. a3 {[%clk 0:02:11.9]} 17... bxc4 {[%clk 0:02:18.3]} 18.
axb4 {[%clk 0:02:10.7]} 18... Bd3 {[%clk 0:02:06.3]} 19. Re1 {[%clk 0:02:05.7]}
19... Nxd5 {[%clk 0:02:06.7]} 20. Bd4 {[%clk 0:01:31.5]} 20... Bxd4 {[%clk
0:02:00.4]} 21. Nxd4 {[%clk 0:01:26.5]} 21... Nxb4 {[%clk 0:02:00.7]} 22. Nf3
{[%clk 0:01:13.7]} 22... Nc6 {[%clk 0:01:29.4]} 23. Qd2 {[%clk 0:01:11.3]} 23...
Nd4 {[%clk 0:01:23.7]} 24. Ne5 {[%clk 0:01:00.9]} 24... Nb3 {[%clk 0:01:22.8]}
25. Qh6 {[%clk 0:00:56.3]} 25... Nxc1 {[%clk 0:01:19.3]} 26. Nxf7 {[%clk
0:00:53.2]} 26... Qd4 {[%clk 0:01:03.5]} 27. Re5 {[%clk 0:00:23.2]} 27... Ne2+
{[%clk 0:00:56.7]} 28. Kh1 {[%clk 0:00:15.8]} 28... Qxf2 {[%clk 0:00:26.3]} 29.
Nxe2 {[%clk 0:00:02]} 29... Qxf7 {[%clk 0:00:26.6]} 0-1

[Event "Late-Titled-Tuesday-Blitz-April-02-2024"]
[Site "Chess.com"]
[Date "2024.04.02"]
[Round "11"]
[White "shirovin"]
[Black "maurovargas01"]
[Result "0-1"]
[WhiteElo "2040"]
[BlackElo "1894"]
[TimeControl "180+1"]
[EndTime "16:03:39 PDT"]
[Termination "maurovargas01 won by checkmate"]

1. Nf3 {[%clk 0:03:00.9]} 1... Nc6 {[%clk 0:02:58.9]} 2. g3 {[%clk 0:03:01.3]}
2... e5 {[%clk 0:02:58.5]} 3. d3 {[%clk 0:03:01.6]} 3... f5 {[%clk 0:02:40.2]}
4. Nbd2 {[%clk 0:02:52.4]} 4... d6 {[%clk 0:02:39.8]} 5. Bg2 {[%clk 0:02:50.8]}
5... g6 {[%clk 0:02:40]} 6. O-O {[%clk 0:02:49.5]} 6... Nf6 {[%clk 0:02:40.4]}
7. e4 {[%clk 0:02:50]} 7... Bg7 {[%clk 0:02:39.4]} 8. Re1 {[%clk 0:02:45.9]}
8... O-O {[%clk 0:02:39.2]} 9. c3 {[%clk 0:02:32.6]} 9... h6 {[%clk 0:02:26.5]}
10. b4 {[%clk 0:02:29.6]} 10... g5 {[%clk 0:02:25.9]} 11. exf5 {[%clk
0:02:12.3]} 11... Bxf5 {[%clk 0:02:24.6]} 12. Qc2 {[%clk 0:01:58.5]} 12... Qe8
{[%clk 0:02:19.5]} 13. b5 {[%clk 0:01:54.2]} 13... Ne7 {[%clk 0:02:15.6]} 14. c4
{[%clk 0:01:44.9]} 14... Qh5 {[%clk 0:02:13.6]} 15. Nf1 {[%clk 0:01:25.5]} 15...
Qg6 {[%clk 0:02:09.7]} 16. Rd1 {[%clk 0:01:18.8]} 16... Ng4 {[%clk 0:02:08.6]}
17. h3 {[%clk 0:01:14.1]} 17... Nf6 {[%clk 0:01:38.4]} 18. g4 {[%clk 0:01:11.7]}
18... Bd7 {[%clk 0:01:31.6]} 19. N3d2 {[%clk 0:01:04.5]} 19... Rae8 {[%clk
0:01:29.7]} 20. Bxb7 {[%clk 0:01:01.7]} 20... h5 {[%clk 0:01:28.2]} 21. Bf3
{[%clk 0:00:50.1]} 21... hxg4 {[%clk 0:01:27.8]} 22. hxg4 {[%clk 0:00:49.5]}
22... Nxg4 {[%clk 0:01:22.8]} 23. Ne4 {[%clk 0:00:36.4]} 23... Qh5 {[%clk
0:01:17.9]} 24. Qe2 {[%clk 0:00:29.6]} 24... Ng6 {[%clk 0:01:09.1]} 25. Nxg5
{[%clk 0:00:17]} 25... Nf4 {[%clk 0:01:05.4]} 26. Bxf4 {[%clk 0:00:14.6]} 26...
exf4 {[%clk 0:01:05]} 27. Ne4 {[%clk 0:00:11.7]} 27... Bd4 {[%clk 0:00:47.6]}
28. Bxg4 {[%clk 0:00:04.8]} 28... Bxg4 {[%clk 0:00:46.6]} 29. Qd2 {[%clk
0:00:02.8]} 29... Bf3 {[%clk 0:00:27.9]} 30. Re1 {[%clk 0:00:01.1]} 30... Qh1#
{[%clk 0:00:26.2]} 0-1

[Event "Late-Titled-Tuesday-Blitz-April-02-2024"]
[Site "Chess.com"]
[Date "2024.04.02"]
[Round "11"]
[White "Duhless"]
[Black "GMKrikor"]
[Result "1-0"]
[WhiteElo "3100"]
[BlackElo "2872"]
[TimeControl "180+1"]
[EndTime "16:03:42 PDT"]
[Termination "Duhless won on time"]

1. e4 {[%clk 0:03:00.9]} 1... c5 {[%clk 0:03:00]} 2. Nc3 {[%clk 0:02:59.9]} 2...
Nc6 {[%clk 0:02:59.8]} 3. Nf3 {[%clk 0:02:59.6]} 3... Nf6 {[%clk 0:02:59.1]} 4.
Bb5 {[%clk 0:02:59.1]} 4... Qc7 {[%clk 0:02:59]} 5. d3 {[%clk 0:02:57.6]} 5...
Nd4 {[%clk 0:02:50]} 6. Ba4 {[%clk 0:02:49.2]} 6... e6 {[%clk 0:02:44.6]} 7. O-O
{[%clk 0:02:47.6]} 7... Ng4 {[%clk 0:02:13]} 8. g3 {[%clk 0:02:43.8]} 8... Nxf3+
{[%clk 0:02:13.1]} 9. Qxf3 {[%clk 0:02:43.6]} 9... Ne5 {[%clk 0:02:13.8]} 10.
Qg2 {[%clk 0:02:43]} 10... a6 {[%clk 0:02:05.1]} 11. f4 {[%clk 0:02:42.1]} 11...
Nc6 {[%clk 0:02:05.7]} 12. Be3 {[%clk 0:02:15]} 12... Be7 {[%clk 0:02:03.5]} 13.
Rae1 {[%clk 0:01:49.3]} 13... O-O {[%clk 0:01:57.8]} 14. f5 {[%clk 0:01:43.4]}
14... b5 {[%clk 0:01:53.3]} 15. Bb3 {[%clk 0:01:41.8]} 15... Nd4 {[%clk
0:01:47]} 16. Bxd4 {[%clk 0:01:37.8]} 16... cxd4 {[%clk 0:01:47.1]} 17. Ne2
{[%clk 0:01:38.7]} 17... a5 {[%clk 0:01:31.2]} 18. Nf4 {[%clk 0:01:26.4]} 18...
a4 {[%clk 0:01:14]} 19. Bd5 {[%clk 0:01:26.2]} 19... exd5 {[%clk 0:00:38]} 20.
Nxd5 {[%clk 0:01:27.1]} 20... Qd8 {[%clk 0:00:38.6]} 21. e5 {[%clk 0:01:25.9]}
21... Ra6 {[%clk 0:00:39.3]} 22. f6 {[%clk 0:00:38]} 22... gxf6 {[%clk
0:00:38.9]} 23. Nxe7+ {[%clk 0:00:38.7]} 23... Qxe7 {[%clk 0:00:37.5]} 24. exf6
{[%clk 0:00:39.6]} 24... Qc5 {[%clk 0:00:23.3]} 25. Qh3 {[%clk 0:00:37.5]} 25...
Qg5 {[%clk 0:00:13.6]} 26. Re5 {[%clk 0:00:23.3]} 26... Qg6 {[%clk 0:00:11.9]}
27. Qh4 {[%clk 0:00:23.1]} 27... h6 {[%clk 0:00:10.4]} 28. Rh5 {[%clk 0:00:23]}
28... Kh7 {[%clk 0:00:03.7]} 29. Rff5 {[%clk 0:00:23.2]} 29... d6 {[%clk
0:00:03.5]} 30. Rxh6+ {[%clk 0:00:22.8]} 30... Qxh6 {[%clk 0:00:03.4]} 31. Rh5
{[%clk 0:00:23.6]} 1-0